bitfinex-derivatives/quotes_SOLF0:USTF0_20250228
["timestamp","ask_amount","ask_price","bid_price","bid_amount"]
[1740743480481,11.98,134.22,134.07,11.98]
[1740743480688,19.4355,134.22,134.18,7.4574]
[1740743481081,11.98,134.22,134.07,176.02052529]
[1740743481275,0.05610267,134.21,134.19,0.0531693]
[1740743481473,11.98,134.22,134.07,176.02052529]
[1740743481674,0.05467111,134.21,134.19,0.05016673]
[1740743481878,11.98,134.22,134.07,176.02052529]
[1740743482079,7.50471201,134.21,134.19,0.05506002]
[1740743482383,11.98,134.22,134.16,7.4585]
[1740743482576,0.05337837,134.21,134.19,0.04716977]
[1740743482781,7.4566,134.2,134.19,0.04716977]
[1740743484786,7.4581,134.18,134.13,7.46]
[1740743484984,7.4581,134.18,134.08,164.04052529]
[1740743485381,11.98,134.22,134.08,164.04052529]
[1740743485382,7.4574,134.19,134.08,164.04052529]
[1740743486082,0.05537187,134.15,134.12,0.04876655]
[1740743486283,11.98,134.22,134.08,164.04052529]
[1740743486486,0.05175932,134.15,134.12,0.04823011]
[1740743486780,11.98,134.22,134.08,167.76052529]
[1740743486991,7.4552,134.23,134.08,164.04052529]
[1740743487289,1.9568,134.24,134.08,164.04052529]
[1740743487584,7.4558,134.22,134.1,14.9233]
[1740743487786,0.05374694,134.17,134.15,0.04747654]
[1740743488289,0.05682513,134.17,134.16,7.4588]
[1740743488785,7.51522513,134.17,134.15,0.04695251]
[1740743489786,0.05682513,134.17,134.15,0.04695251]
[1740743490078,0.05682513,134.17,134.16,7.4588]
[1740743490280,7.4553,134.23,134.15,3.76695251]
[1740743490479,7.4553,134.23,134.19,7.4569]
[1740743490687,18.86299535,134.28,134.16,1.8774]
[1740743490887,7.4547,134.24,134.16,1.8774]
[1740743491075,7.4547,134.24,134.2,7.4563]
[1740743491283,0.04993563,134.23,134.21,0.05295809]
[1740743491681,7.50493563,134.23,134.21,0.05295809]
[1740743493887,0.04993563,134.23,134.21,0.05295809]
[1740743494084,7.4555,134.22,134.21,0.05295809]
[1740743494492,7.4574,134.19,134.16,7.4586]
[1740743495383,7.4583,134.17,134.14,7.4596]
[1740743495579,7.50594042,134.17,134.14,7.51149296]
[1740743495990,7.4589,134.16,134.14,0.05189296]
[1740743496184,0.04764042,134.17,134.14,0.05189296]
[1740743496385,7.4594,134.15,134.14,0.05189296]
[1740743501293,0.04764042,134.17,134.14,0.05189296]
[1740743501490,7.50614042,134.17,134.14,0.05189296]
[1740743501889,0.04764042,134.17,134.14,7.51149296]
[1740743502590,0.04764042,134.17,134.14,0.05189296]
[1740743502989,7.4594,134.15,134.14,0.05189296]
[1740743507892,0.04764042,134.17,134.06,113.26186915]
[1740743508097,11.98,134.15,134.06,113.26186915]
[1740743508393,11.98,134.15,134.06,1.8202]
[1740743508596,7.4624,134.1,134.07,7.4635]
[1740743508893,11.98,134.15,134.06,1.8202]
[1740743509196,0.05135692,134.1,134.07,0.05226575]
[1740743510994,7.4627,134.09,134.07,0.05226575]
[1740743511198,0.05135692,134.1,134.07,0.05226575]
[1740743511697,7.4627,134.09,134.07,0.05226575]
[1740743511896,0.05135692,134.1,134.07,0.05226575]
[1740743512792,7.463,134.09,134.07,0.05226575]
[1740743513896,0.05135692,134.1,134.07,0.05226575]
[1740743514799,0.05135692,134.1,134.08,7.4628]
[1740743514996,0.05135692,134.1,134.07,0.05226575]
[1740743515198,0.05135692,134.1,134.08,7.4629]
[1740743515694,7.51355692,134.1,134.07,0.05226575]
[1740743515899,7.51355692,134.1,134.07,7.51566575]
[1740743516092,0.05135692,134.1,134.07,0.05226575]
[1740743517601,7.4633,134.08,134.07,0.05226575]
[1740743519903,7.4656,134.04,133.98,5.8591]
[1740743520598,7.4656,134.04,134.02,7.4666]
[1740743521103,0.05024782,134.04,134.02,7.51698591]
[1740743521499,0.05024782,134.04,134.03,7.466]
[1740743522403,0.05024782,134.04,134.02,7.51668591]
[1740743523099,0.05024782,134.04,133.92,132.5363915]
[1740743523307,7.4675,134.01,133.93,5.8703]
[1740743523499,11.96,134.08,133.97,7.4691]
[1740743523800,7.4685,133.99,133.93,5.8703]
[1740743524006,7.4685,133.99,133.96,7.4696]
[1740743524203,11.96,134.01,133.93,5.8703]
[1740743524406,0.05094956,133.97,133.93,5.8703]
[1740743524605,0.05094956,133.97,133.96,7.4699]
[1740743524804,0.05094956,133.97,133.93,5.8703]
[1740743525101,0.05094956,133.97,133.95,7.4702]
[1740743525307,0.05094956,133.97,133.88,60.11583262]
[1740743525508,7.4693,133.98,133.94,7.4707]
[1740743525807,0.05407645,133.94,133.89,5.7253]
[1740743526002,7.4696,133.97,133.89,5.7253]
[1740743526397,0.05267286,133.96,133.89,5.7253]
[1740743526903,3.7905,134.07,133.89,5.7253]
[1740743527100,11.96,134.04,133.89,5.7253]
[1740743527301,19.4255,134.04,134.01,7.4668]
[1740743527904,11.96,134.04,133.89,17.6853]
[1740743528113,12.01453171,134.04,134.01,0.05714521]
[1740743528306,11.96,134.04,134.02,7.4664]
[1740743528502,11.96,134.04,134.01,0.04790965]
[1740743528503,0.04722139,134.04,134.01,0.04790965]
[1740743528701,15.7705,134.07,133.9,164.04052529]
[1740743528907,6.044e-05,134.0,133.97,0.05655775]
[1740743529107,17.7514,134.12,133.97,164.04052529]
[1740743529304,5.7714,134.12,133.98,3.8294]
[1740743529605,17.7514,134.12,133.98,3.8294]
[1740743529809,17.7514,134.12,133.98,167.86992529]
[1740743530308,0.05561411,134.06,134.04,0.04964729]
[1740743530510,7.4633,134.08,134.04,7.51494729]
[1740743530908,0.05123639,134.06,134.04,7.51494729]
[1740743531607,0.05123639,134.06,134.04,0.04964729]
[1740743532313,7.4649,134.05,134.04,0.04964729]
[1740743532519,11.98,134.05,133.98,1.8908]
[1740743532814,3.9663,134.04,133.93,3.8224]
[1740743533711,0.05165318,134.0,133.97,0.05740555]
[1740743533909,7.4683,133.99,133.97,0.05740555]
[1740743534104,0.05165318,134.0,133.97,0.05740555]
[1740743534610,7.51985318,134.0,133.97,0.05740555]
[1740743536215,7.4687,133.99,133.97,0.05740555]
[1740743536420,0.05165318,134.0,133.97,0.05740555]
[1740743537209,0.05165318,134.0,133.98,7.4685]
[1740743537411,0.05165318,134.0,133.97,0.05740555]
[1740743537813,0.05165318,134.0,133.99,7.4683]
[1740743541317,11.98,134.05,133.97,0.05740555]
[1740743541519,17.7151,134.09,133.97,0.05740555]
[1740743541709,17.7151,134.09,134.02,7.4663]
[1740743542317,7.4648,134.06,133.94,1.8657]
[1740743542621,0.05500391,134.07,134.04,0.04800407]
[1740743542814,17.7151,134.09,134.04,0.05399449]
[1740743543014,7.4649,134.05,134.04,0.05399449]
[1740743543214,0.05624979,134.07,134.04,0.05399449]
[1740743543613,7.4645,134.06,134.04,0.05399449]
[1740743544119,7.4649,134.05,134.04,0.05399449]
[1740743544522,0.05624979,134.07,133.94,165.90622529]
[1740743544818,17.7151,134.09,134.0,7.4673]
[1740743545522,1.32385554,134.08,134.0,7.4673]
[1740743545715,0.04838257,134.06,134.03,0.0537755]
[1740743547328,7.4655,134.04,134.03,0.0537755]
[1740743548623,0.04838257,134.06,134.03,0.0537755]
[1740743548922,7.51308257,134.06,134.03,7.5195755]
[1740743549318,0.04838257,134.06,134.03,0.0537755]
[1740743549517,0.04838257,134.06,134.04,7.4649]
[1740743551629,0.04838257,134.06,134.03,0.0537755]
[1740743553126,0.04838257,134.06,133.95,1.894]
[1740743553319,1.32385517,134.08,133.95,1.894]
[1740743553623,59.7277,134.07,133.94,1.8657]
[1740743553826,1.32385517,134.06,133.91,38.62789757]
[1740743554025,7.4714,133.94,133.91,38.62789757]
[1740743554327,11.96,133.96,133.91,38.62789757]
[1740743554528,7.4721,133.93,133.91,38.62789757]
[1740743554725,13.9142,133.95,133.91,38.62789757]
[1740743555226,0.05110645,133.93,133.91,38.62789757]
[1740743557231,7.52270645,133.93,133.91,38.62789757]
[1740743557432,7.52270645,133.93,133.89,7.4737]
[1740743557835,0.05110645,133.93,133.89,7.4737]
[1740743559234,7.52270645,133.93,133.89,7.4737]
[1740743559536,7.52270645,133.93,133.86,3.7325]
[1740743559738,7.4724,133.92,133.86,3.7325]
[1740743560230,7.4724,133.92,133.88,7.4741]
[1740743560736,7.4724,133.92,133.86,3.7325]
[1740743560935,7.52320645,133.93,133.89,7.4736]
[1740743561136,7.52320645,133.93,133.86,3.7325]
[1740743561335,7.4723,133.92,133.88,7.4743]
[1740743562130,7.4727,133.91,133.88,7.4743]
[1740743562436,0.05110645,133.93,133.88,7.4743]
[1740743562936,7.4725,133.92,133.88,7.4743]
[1740743563236,0.05110645,133.93,133.86,3.7325]
[1740743563438,7.4725,133.92,133.86,3.7325]
[1740743563641,7.4725,133.92,133.89,7.4735]
[1740743565136,7.4725,133.92,133.88,7.4741]
[1740743565333,0.05110645,133.93,133.79,14.9587]
[1740743565537,1.8908,133.94,133.81,1.9921]
[1740743565833,0.04788239,133.88,133.75,1.9287]
[1740743566037,11.92,133.87,133.75,5.788]
[1740743566240,0.0516015,133.83,133.81,7.4782]
[1740743567140,0.0516015,133.83,133.75,5.788]
[1740743568438,0.0516015,133.83,133.81,7.478]
[1740743569730,0.0516015,133.83,133.75,5.788]
[1740743570438,0.0516015,133.83,133.82,7.4778]
[1740743570638,0.0516015,133.83,133.75,5.788]
[1740743571235,13.8489,133.9,133.78,0.04753897]
[1740743571437,13.8489,133.9,133.76,14.962]
[1740743571636,13.8489,133.9,133.75,5.788]
[1740743571834,13.8489,133.9,133.76,11.96]
[1740743572031,11.96,133.9,133.77,14.961]
[1740743572239,11.96,133.9,133.82,0.05733962]
[1740743572240,1.663e-05,133.84,133.82,0.05733962]
[1740743572437,11.96,133.9,133.87,7.4747]
[1740743572843,11.96,133.9,133.83,3.9153]
[1740743573336,11.96,133.9,133.85,0.05109274]
[1740743573542,0.05502601,133.88,133.85,0.05109274]
[1740743576142,0.05502601,133.88,133.86,7.4752]
[1740743576641,0.05502601,133.88,133.85,0.05109274]
[1740743576845,0.05502601,133.88,133.87,7.475]
[1740743582247,7.4718,133.93,133.9,7.473]
[1740743582647,13.8508,133.94,133.86,1.8096]
[1740743583145,13.8508,133.94,133.83,3.9153]
[1740743583449,0.05565169,133.91,133.89,0.05037619]
[1740743584538,7.4733,133.9,133.89,0.05037619]
[1740743588052,7.52286668,133.88,133.85,7.53134302]
[1740743588854,0.04816668,133.88,133.85,0.05554302]
[1740743589453,7.4752,133.87,133.85,0.05554302]
[1740743591053,7.4752,133.87,133.85,7.53154302]
[1740743592259,0.04816668,133.88,133.85,0.05554302]
[1740743592458,7.4755,133.86,133.85,0.05554302]
[1740743593054,0.04816668,133.88,133.85,0.05554302]
[1740743593254,7.4755,133.86,133.85,0.05554302]
[1740743595660,7.4755,133.86,133.85,4.302e-05]
[1740743595962,11.2155,133.86,133.85,4.302e-05]
[1740743598854,12.54168736,133.86,133.85,4.302e-05]
[1740743599064,11.2155,133.86,133.85,4.302e-05]
[1740743600062,7.4755,133.86,133.85,4.302e-05]
[1740743601365,0.04816668,133.88,133.85,4.302e-05]
[1740743601564,0.04816668,133.88,133.85,7.47564302]
[1740743602064,0.04816668,133.88,133.85,4.302e-05]
[1740743602666,7.4754,133.87,133.85,4.302e-05]
[1740743603669,7.475,133.87,133.85,7.47594302]
[1740743603861,0.04816668,133.88,133.85,4.302e-05]
[1740743604362,0.04816668,133.88,133.87,7.475]
[1740743604566,13.7692,133.95,133.86,5.5888]
[1740743605667,7.4736,133.9,133.86,5.5888]
[1740743605870,7.4736,133.9,133.89,0.05303576]
[1740743607067,7.52654954,133.92,133.89,7.52683576]
[1740743607263,0.05414954,133.92,133.89,7.52683576]
[1740743607760,0.05414954,133.92,133.89,0.05303576]
[1740743608367,0.05414954,133.92,133.9,7.473]
[1740743608567,7.4728,133.91,133.89,0.05303576]
[1740743608769,0.05414954,133.92,133.89,0.05303576]
[1740743609671,7.4733,133.9,133.89,0.05303576]
[1740743610766,0.05414954,133.92,133.9,7.4733]
[1740743611159,0.05414954,133.92,133.91,7.4727]
[1740743613872,7.52644954,133.92,133.89,0.05303576]
[1740743614070,0.05414954,133.92,133.89,0.05303576]
[1740743614472,7.52654954,133.92,133.89,0.05303576]
[1740743614671,7.52654954,133.92,133.89,7.52643576]
[1740743615473,7.52654954,133.92,133.9,7.4733]
[1740743615969,0.05414954,133.92,133.89,0.05303576]
[1740743616572,0.05414954,133.92,133.91,7.4727]
[1740743620777,0.05414954,133.92,133.89,0.05303576]
[1740743621673,7.52664954,133.92,133.9,7.4733]
[1740743621876,7.52664954,133.92,133.89,0.05303576]
[1740743622280,7.52664954,133.92,133.9,7.4729]
[1740743622770,0.05414954,133.92,133.9,7.4729]
[1740743624076,0.05414954,133.92,133.91,7.4727]
[1740743624279,81.49717296,133.96,133.89,0.05303576]
[1740743625282,81.49717296,133.96,133.95,7.4705]
[1740743626076,7.52373408,133.97,133.95,7.4705]
[1740743626881,0.05413408,133.97,133.96,7.4699]
[1740743628177,81.49717296,133.98,133.94,0.05443035]
[1740743628383,81.49717296,133.98,133.97,7.4694]
[1740743628586,69.77517296,133.98,133.97,7.4694]
[1740743628883,122.72280736,134.0,133.98,7.4688]
[1740743629384,122.77883024,134.0,133.98,0.0483809]
[1740743629684,122.77883024,134.0,133.99,7.4683]
[1740743630177,121.41763024,134.0,133.99,7.4683]
[1740743631484,0.05602288,134.0,133.99,7.4683]
[1740743632383,18.94116638,134.03,133.99,3.74]
[1740743632581,18.94116638,134.03,134.02,7.4666]
[1740743633680,18.94116638,134.03,134.01,0.05145461]
[1740743633882,7.4656,134.04,134.01,7.4669]
[1740743634077,0.05676048,134.03,134.01,7.51963846]
[1740743634282,0.05676048,134.03,134.01,0.05273846]
[1740743634783,7.4666,134.02,134.01,0.05273846]
[1740743634985,0.05676048,134.03,133.95,164.04052529]
[1740743635184,1.9739,134.02,133.9,1.6207]
[1740743635383,7.4693,133.98,133.95,7.4702]
[1740743636185,7.52532481,133.98,133.95,7.52092625]
[1740743636584,0.05602481,133.98,133.95,0.05072625]
[1740743637288,7.4699,133.96,133.95,0.05072625]
[1740743639789,7.4696,133.97,133.95,0.05072625]
[1740743639983,0.05602481,133.98,133.95,0.05072625]
[1740743640382,0.05602481,133.98,133.96,7.4696]
[1740743641290,0.05602481,133.98,133.95,0.05072625]
[1740743641291,7.4696,133.97,133.95,0.05072625]
[1740743641485,0.05602481,133.98,133.95,0.05072625]
[1740743641887,7.4698,133.97,133.95,0.05072625]
[1740743642090,0.05602481,133.98,133.95,0.05072625]
[1740743642593,7.52532481,133.98,133.95,0.05072625]
[1740743642793,0.05602481,133.98,133.95,0.05072625]
[1740743643090,0.05602481,133.98,133.85,1.619]
[1740743643294,124.56111134,134.01,133.85,1.619]
[1740743643492,139.49571134,134.01,133.85,1.619]
[1740743643994,1.32466379,134.0,133.85,1.619]
[1740743644191,7.473,133.91,133.85,1.619]
[1740743644596,7.473,133.91,133.87,0.04712621]
[1740743644899,0.05186854,133.89,133.88,7.4741]
[1740743645194,1.9472,133.94,133.85,1.619]
[1740743645497,9.4186,133.94,133.9,7.4732]
[1740743645790,0.05537676,133.91,133.9,7.4732]
[1740743647297,0.05537676,133.91,133.89,0.04911566]
[1740743647691,0.05537676,133.91,133.81,368.83162529]
[1740743647892,7.4736,133.9,133.85,7.4755]
[1740743648093,7.4736,133.9,133.81,1.6711]
[1740743648393,7.4741,133.89,133.85,7.4758]
[1740743648597,1.9635,133.92,133.81,1.6711]
[1740743648893,7.4759,133.86,133.85,0.05497705]
[1740743649708,7.4765,133.85,133.81,7.4782]
[1740743649904,7.4765,133.85,133.76,1.6711]
[1740743650109,1.9525,133.87,133.82,7.4776]
[1740743650410,7.4759,133.86,133.82,7.4776]
[1740743650608,1.9525,133.87,133.81,7.478]
[1740743650806,0.04749457,133.85,133.83,0.05501434]
[1740743651199,0.04749457,133.85,133.83,0.05127577]
[1740743651510,7.52389457,133.85,133.83,0.05127577]
[1740743651709,0.04749457,133.85,133.83,0.05127577]
[1740743651911,0.04749457,133.85,133.75,9.65697439]
[1740743652312,1.9525,133.87,133.77,7.4802]
[1740743652611,7.4788,133.81,133.77,7.4802]
[1740743652806,1.8585,133.8,133.71,1.6711]
[1740743653012,1.91527857,133.8,133.71,1.6711]
[1740743653407,1.8585,133.8,133.71,1.6711]
[1740743653606,0.0536201,133.77,133.71,1.6711]
[1740743654713,0.0536201,133.77,133.75,7.4812]
[1740743654915,0.0536201,133.77,133.69,38.62789757]
[1740743655817,0.0536201,133.77,133.75,7.4813]
[1740743656112,0.0536201,133.77,133.69,38.62789757]
[1740743656919,0.0536201,133.77,133.65,203.22]
[1740743657312,1.8983,133.79,133.65,203.22]
[1740743657514,0.05495053,133.72,133.65,203.22]
[1740743657709,0.05495053,133.72,133.64,38.62789757]
[1740743657914,0.05495053,133.72,133.66,7.4864]
[1740743658115,0.05495053,133.72,133.64,38.62789757]
[1740743658314,7.4847,133.7,133.65,7.4871]
[1740743658511,0.05495053,133.72,133.65,7.4871]
[1740743658721,5.7168,133.73,133.64,38.62789757]
[1740743659022,7.486,133.68,133.64,46.11559757]
[1740743659418,0.04823681,133.7,133.64,46.11559757]
[1740743659419,0.04823681,133.7,133.64,38.62789757]
[1740743659818,0.04823681,133.7,133.66,7.4865]
[1740743660518,0.04823681,133.7,133.64,38.62789757]
[1740743660819,7.53313681,133.7,133.65,7.487]
[1740743661221,7.4851,133.69,133.64,38.62789757]
[1740743661519,0.04823681,133.7,133.64,38.62789757]
[1740743661721,0.04823681,133.7,133.58,38.62789757]
[1740743661918,1.32754762,133.72,133.61,7.4892]
[1740743662123,0.05107879,133.65,133.58,38.62789757]
[1740743662319,11.88,133.64,133.58,38.62789757]
[1740743662521,0.0531885,133.63,133.62,7.4889]
[1740743662819,0.0531885,133.63,133.58,38.62789757]
[1740743663019,1.9399885,133.63,133.58,38.62789757]
[1740743663220,9.4287885,133.63,133.58,46.11869757]
[1740743663422,1.9399885,133.63,133.58,38.62789757]
[1740743663821,1.9399885,133.63,133.6,7.49]
[1740743664224,1.9399885,133.63,133.58,38.62789757]
[1740743664424,7.4894,133.62,133.58,38.62789757]
[1740743665423,1.9399885,133.63,133.58,38.62789757]
[1740743666422,7.4906,133.59,133.58,29.59189757]
[1740743666818,7.4906,133.59,133.48,165.76902529]
[1740743667024,7.4906,133.59,133.54,7.493]
[1740743667525,0.05647878,133.58,133.48,1.7285]
[1740743667721,7.4906,133.59,133.55,7.4927]
[1740743668128,7.4913,133.58,133.54,7.4932]
[1740743668323,0.05686233,133.58,133.48,1.7285]
[1740743668524,0.05686233,133.58,133.49,166.00822529]
[1740743668725,7.4893,133.62,133.58,7.4911]
[1740743669125,0.04994215,133.61,133.5,1.9642]
[1740743669321,0.04994215,133.61,133.59,7.4902]
[1740743669630,13.7668,133.63,133.59,7.4902]
[1740743669824,0.05287342,133.61,133.59,7.4902]
[1740743670226,0.05287342,133.61,133.6,7.4901]
[1740743670626,11.9,133.64,133.5,13.8642]
[1740743670828,11.9,133.64,133.62,7.4889]
[1740743671229,11.95588857,133.64,133.62,7.4889]
[1740743671427,0.05588857,133.64,133.62,7.4889]
[1740743671627,0.05588857,133.64,133.63,7.4884]
[1740743672127,0.05054746,133.65,133.64,7.4875]
[1740743672626,1.8184,133.68,133.55,3.8859]
[1740743672829,0.05599204,133.66,133.56,14.9846]
[1740743673024,1.8184,133.68,133.56,14.9846]
[1740743673224,0.05004805,133.62,133.57,1.8995]
[1740743673426,0.05004805,133.62,133.61,7.4895]
[1740743673827,0.05004805,133.62,133.57,1.8995]
[1740743674026,0.05004805,133.62,133.6,7.4896]
[1740743674222,0.05004805,133.62,133.57,1.8995]
[1740743675330,0.05004805,133.62,133.55,3.8859]
[1740743676929,0.05004805,133.62,133.61,7.4895]
[1740743680334,11.88,133.67,133.64,7.4876]
[1740743680539,19.3665,133.67,133.64,7.4876]
[1740743681538,19.42279271,133.67,133.64,0.04842189]
[1740743681934,7.4873,133.65,133.64,0.04842189]
[1740743682134,11.93629271,133.67,133.64,0.04842189]
[1740743682535,7.4873,133.65,133.64,0.04842189]
[1740743683939,3.74,133.65,133.55,3.8859]
[1740743684236,11.88,133.67,133.55,3.8859]
[1740743684436,7.4896,133.61,133.55,3.8859]
[1740743684632,11.88,133.67,133.58,7.4909]
[1740743684833,7.4889,133.62,133.61,0.0209922]
[1740743685334,7.4889,133.62,133.61,9.22e-05]
[1740743686031,9.3403,133.62,133.61,9.22e-05]
[1740743686232,13.0803,133.62,133.61,9.22e-05]
[1740743687125,9.3403,133.62,133.61,9.22e-05]
[1740743687930,13.0803,133.62,133.61,9.22e-05]
[1740743688932,14.40892909,133.62,133.61,9.22e-05]
[1740743689343,7.4949,133.52,133.49,1.8593]
[1740743689538,11.9,133.55,133.43,98.78126022]
[1740743689837,7.4949,133.52,133.45,3.8222]
[1740743690041,7.4949,133.52,133.48,7.4967]
[1740743690537,0.05176878,133.51,133.48,7.4967]
[1740743690930,0.05176878,133.51,133.45,3.8222]
[1740743691743,7.54696878,133.51,133.47,7.497]
[1740743693240,7.4958,133.5,133.46,7.4977]
[1740743695444,7.4958,133.5,133.47,7.4973]
[1740743695842,7.54869096,133.5,133.47,7.4973]
[1740743698740,0.05289096,133.5,133.49,7.4962]
[1740743699844,7.4937,133.54,133.43,1.9199]
[1740743700042,7.4937,133.54,133.51,7.4949]
[1740743700544,7.4931,133.55,133.52,7.494]
[1740743701043,7.54326044,133.55,133.52,7.54517738]
[1740743702139,0.05016044,133.55,133.52,0.05117738]
[1740743704245,7.54346044,133.55,133.52,0.05117738]
[1740743704850,0.05016044,133.55,133.52,0.05117738]
[1740743705345,0.05016044,133.55,133.54,7.4934]
[1740743706050,91.65487893,133.62,133.53,1.9488]
[1740743706245,91.65487893,133.62,133.54,1.918]
[1740743706441,91.65487893,133.62,133.57,7.4917]
[1740743706647,11.9,133.63,133.54,1.918]
[1740743707151,11.9,133.63,133.57,0.05594517]
[1740743707152,7.54388754,133.6,133.57,0.05594517]
[1740743707643,0.05378754,133.6,133.57,0.05594517]
[1740743708644,0.05378754,133.6,133.57,7.54724517]
[1740743709048,0.05378754,133.6,133.57,0.05594517]
[1740743709248,0.05378754,133.6,133.58,7.4912]
[1740743709652,0.05378754,133.6,133.57,0.05594517]
[1740743710947,0.05378754,133.6,133.59,7.4906]
[1740743711148,67.2982,133.73,133.57,3.79594517]
[1740743711149,11.94,133.68,133.57,3.79594517]
[1740743711348,11.94,133.68,133.57,0.05594517]
[1740743711554,7.4878,133.64,133.61,7.4892]
[1740743711753,11.94,133.68,133.55,165.89202529]
[1740743712156,0.05124578,133.63,133.6,0.05763781]
[1740743712458,11.94,133.68,133.6,0.05763781]
[1740743712858,5.5453,133.72,133.6,0.05763781]
[1740743713058,11.94,133.71,133.55,165.89202529]
[1740743713459,7.4855,133.69,133.65,7.4869]
[1740743713661,0.05435699,133.69,133.65,7.4869]
[1740743713959,0.05435699,133.69,133.66,0.05557559]
[1740743714355,7.53955699,133.69,133.66,0.05557559]
[1740743714560,0.05435699,133.69,133.66,0.05557559]
[1740743714859,7.4861,133.67,133.66,0.05557559]
[1740743717761,7.4887,133.63,133.55,165.89202529]
[1740743717962,11.92,133.69,133.55,165.89202529]
[1740743718263,11.92,133.69,133.61,7.4894]
[1740743718961,0.05624537,133.66,133.64,0.05122546]
[1740743719163,0.05624537,133.66,133.6,7.4898]
[1740743719462,7.4873,133.65,133.64,0.05683169]
[1740743719863,7.4873,133.65,133.55,165.89202529]
[1740743719864,1.8402,133.65,133.55,165.89202529]
[1740743720161,7.4898,133.61,133.55,165.89202529]
[1740743720362,7.4898,133.61,133.58,7.4907]
[1740743720564,3.7097,133.65,133.55,165.89202529]
[1740743720956,3.7097,133.65,133.61,7.4892]
[1740743721264,0.05416597,133.64,133.61,7.4892]
[1740743721461,0.05416597,133.64,133.59,0.05451111]
[1740743721863,7.4894,133.62,133.59,0.05451111]
[1740743722563,0.05416597,133.64,133.59,0.05451111]
[1740743723064,7.54226597,133.64,133.59,0.05451111]
[1740743723365,0.05416597,133.64,133.6,7.4898]
[1740743723560,7.4891,133.62,133.59,0.05451111]
[1740743724162,0.05416597,133.64,133.59,0.05451111]
[1740743724163,7.4886,133.63,133.59,0.05451111]
[1740743724563,7.4886,133.63,133.6,7.4897]
[1740743725262,7.4886,133.63,133.59,0.05451111]
[1740743725566,7.4886,133.63,133.61,7.4894]
[1740743726164,7.4886,133.63,133.59,0.05451111]
[1740743726367,0.05416597,133.64,133.59,0.05451111]
[1740743727368,7.4898,133.61,133.59,0.05451111]
[1740743727668,0.05416597,133.64,133.59,0.05451111]
[1740743727860,7.4901,133.6,133.59,0.05451111]
[1740743729263,0.05140668,133.61,133.53,1.9488]
[1740743729464,11.92,133.62,133.48,3.785]
[1740743729666,11.92,133.62,133.53,7.4939]
[1740743729860,7.4926,133.56,133.53,7.4939]
[1740743730063,11.92,133.62,133.49,1.9183]
[1740743730264,7.4918,133.57,133.54,7.4932]
[1740743730465,7.54824301,133.57,133.54,7.53577786]
[1740743730664,7.54824301,133.57,133.54,0.04257786]
[1740743730864,0.05644301,133.57,133.55,7.4928]
[1740743731969,0.05644301,133.57,133.54,0.04257786]
[1740743732168,0.05644301,133.57,133.56,7.4923]
[1740743732572,0.05644301,133.57,133.54,0.04257786]
[1740743732775,0.05644301,133.57,133.55,7.4926]
[1740743733174,0.05644301,133.57,133.54,0.04257786]
[1740743733374,0.05644301,133.57,133.56,7.4923]
[1740743734274,0.05644301,133.57,133.55,7.4926]
[1740743735878,7.54824301,133.57,133.54,7.53577786]
[1740743736079,0.05644301,133.57,133.54,0.04257786]
[1740743736581,7.4929,133.56,133.54,0.04257786]
[1740743736978,0.05644301,133.57,133.54,0.04257786]
[1740743738487,0.05644301,133.57,133.55,7.4929]
[1740743738681,0.05644301,133.57,133.54,0.04257786]
[1740743738884,7.4927,133.56,133.54,0.04257786]
[1740743741081,0.05644301,133.57,133.54,0.04257786]
[1740743741690,0.05644301,133.57,133.56,7.4923]
[1740743742784,0.05644301,133.57,133.54,0.04257786]
[1740743742986,7.54834301,133.57,133.54,0.04257786]
[1740743743180,0.05644301,133.57,133.54,0.04257786]
[1740743744978,7.4929,133.55,133.54,0.04257786]
[1740743746485,7.4929,133.55,133.54,7.786e-05]
[1740743748090,15.8218,133.56,133.54,7.786e-05]
[1740743748289,7.4929,133.55,133.54,7.786e-05]
[1740743749785,23.3144,133.56,133.54,7.786e-05]
[1740743749985,15.8218,133.56,133.54,7.786e-05]
[1740743750486,13.919,133.56,133.54,7.786e-05]
[1740743750688,0.05644301,133.57,133.54,7.786e-05]
[1740743750892,0.05644301,133.57,133.56,7.4923]
[1740743752691,0.05644301,133.57,133.55,1.8356]
[1740743753294,0.05644301,133.57,133.54,7.786e-05]